[Event "Olomouc Chess Summer-IM 2022"]
[Site "Olomouc"]
[Date "2022.08.17"]
[Round "6.12"]
[White "Mica, Marek"]
[Black "Camarena Jimenez, Rufino"]
[Result "0-1"]
[ECO "D02"]
[WhiteElo "2297"]
[BlackElo "2308"]
[Annotator "TA"]
[PlyCount "120"]
[EventDate "2022.08.10"]
[EventCountry "CZE"]
[SourceTitle "playchess.com"]
[Source "ChessBase"]
[SourceQuality "1"]
[TimeControl "40/5400+30:1800+30"]

{[%evp 14,120,8,0,3,0,-8,-38,-40,-50,-50,-72,-50,-79,-72,-100,-89,-126,-115,-132,-121,-89,-67,-101,-116,-111,-87,-200,-195,-189,-181,-204,-137,-157,-152,-132,-156,-166,-110,-101,-91,-85,-74,-366,-365,-345,-350,-369,-364,-333,-326,-308,-321,-912,-910,-852,-838,-654,-409,-768,-743,-875,-846,-717,-589,-560,-569,-579,-569,-541,-530,-486,-376,-366,-367,-400,-395,-389,-386,-360,-372,-1540,-1472,-1294,-1169,-7777,-8478,-6771,-6771,-1534,-1033,-12831,-12830,-5173,-1337,-714,-629,-12849,-12849,-27999,-27999,-27999,-27999,-27999,-27996,-27997,-27997,-27997,-27997]} 1. d4 {[%emt 0:00:37]} d5 {[%emt 0:00:11]} 2. Nf3 {[%emt 0:00:34]} Nf6 {[%emt 0:00:07]} 3. g3 {[%emt 0:04:34]} Bf5 {[%emt 0:02:14]} 4. Bg2 {[%emt 0:00:55]} h6 {[%emt 0:00:34]} 5. c4 {[%emt 0:01:00]} c6 {[%emt 0:00:13]} 6. O-O {[%emt 0:01:19]} e6 {[%emt 0:00:16]} 7. Nc3 {[%emt 0:01:05]} Nbd7 {[%emt 0:00:34]} 8. Nd2 {[%emt 0:04:11]} Be7 {[%emt 0:00:28] D11: Slav Defence: 3 Nf3 sidelines and 3...Nf6 4 e3 Bg4.} 9. cxd5 {[%emt 0:08:35]} exd5 {[%emt 0:00:49] [#]} 10. Nb3 $146 {[%emt 0:01:11]} ({Predecessor:} 10. e4 dxe4 11. Ndxe4 O-O 12. Qb3 Nb6 13. Nxf6+ Bxf6 14. d5 Bxc3 15. bxc3 cxd5 16. Be3 Be6 17. Bxb6 axb6 18. Rab1 d4 19. Qxb6 dxc3 20. Qxd8 Rfxd8 21. Rxb7 Rxa2 22. h4 c2 {½-½ (22) Guerra Mojena,L (2362)-Ruiz Sanchez,O (2426) Cuernavaca 2015}) 10... O-O {[%emt 0:00:35] Black is slightly better.} 11. f3 {[%emt 0:01:21]} a5 $1 {[%emt 0:13:16]} 12. a4 {[%emt 0:07:05]} Bb4 {[%emt 0:00:37]} 13. g4 {[%emt 0:05:49]} Bh7 {[%emt 0:01:45]} 14. Rf2 {[%emt 0:05:00]} Re8 {[%emt 0:02:59]} 15. Bf1 {[%emt 0:02:34]} Nb6 {[%emt 0:07:25]} 16. h4 {[%emt 0:07:05]} Nfd7 {[%emt 0:02:22][%cal Bf6d7,Bd7f8,Bf8g6,Bg6h4,Bh4f3][%mdl 32]} 17. g5 {[%emt 0:01:09]} h5 {[%emt 0:00:32]} 18. Bf4 {[%emt 0:06:12][%cal Oe2e4] Prevents Qc7.} Nc4 {[%emt 0:13:11]} 19. Qc1 {[%emt 0:08:15][%cal Oe2e4] Prevents Ne3.} Bd6 {[%emt 0:05:32] And now ...Bxf4 would win. 0x0.0020aee8ed48dp-1022s more active pieces.} 20. Bxd6 {[%emt 0:20:04]} (20. e4 $17) 20... Nxd6 $19 {[%emt 0:00:14]} 21. Qf4 {[%emt 0:00:05] [#]} Nf8 $1 {[%emt 0:02:07]} 22. Bh3 {[%emt 0:03:26][%cal Bf1h3,Bh3f5,Bf5d3][%mdl 32]} Bc2 {[%emt 0:01:42]} 23. Nc5 {[%emt 0:01:23]} Ng6 {[%emt 0:05:11]} 24. Qd2 {[%emt 0:02:11]} Bf5 {[%emt 0:02:38]} 25. Nxb7 {[%emt 0:01:19]} Nxb7 {[%emt 0:00:12]} (25... Qc7 $19 26. Nxd6 Bxh3) 26. Bxf5 $17 {[%emt 0:00:09]} Nxh4 {[%emt 0:00:08]} 27. Bd3 {[%emt 0:00:30]} Nd6 {[%emt 0:06:29]} 28. e4 $2 {[%emt 0:04:44][%mdl 8192] [#] Now White is beyond hope.} (28. Rh2 $17 {keeps fighting.} Nhf5 29. Rxh5) 28... Nxf3+ $1 $19 {[%emt 0:01:53][%mdl 512]} 29. Rxf3 {[%emt 0:00:21]} dxe4 {[%emt 0:00:02]} 30. Rh3 {[%emt 0:00:43]} exd3 {[%emt 0:00:43]} 31. Rxh5 {[%emt 0:00:57]} g6 {[%emt 0:01:34]} 32. Rh3 {[%emt 0:01:18]} Ne4 {[%emt 0:02:27]} 33. Nxe4 {[%emt 0:00:41]} (33. Qf4 Nxg5 34. Rxd3) 33... Rxe4 {[%emt 0:00:03]} 34. Rxd3 {[%emt 0:00:18]} Rg4+ {[%emt 0:00:22]} 35. Kf2 {[%emt 0:00:48]} Rxg5 {[%emt 0:02:21]} 36. Rh1 {[%emt 0:00:30]} (36. Raa3 $142) 36... Qd5 {[%emt 0:01:08]} 37. Rh2 {[%emt 0:00:21] Prevents Qg2+.} Re8 {[%emt 0:01:26] ...Qf5+ is the strong threat.} 38. Re3 {[%emt 0:00:37]} Qf5+ {[%emt 0:12:51]} 39. Ke2 {[%emt 0:00:29]} Rd8 {[%emt 0:00:46]} 40. Reh3 {[%emt 0:00:33]} Qg4+ {[%emt 0:00:45]} 41. Ke3 {[%emt 0:01:24]} Rf5 {[%emt 0:20:31]} 42. Qc3 {[%emt 0:03:41]} Qg1+ {[%emt 0:04:45]} 43. Kd3 {[%emt 0:01:17] White wants to mate with Rh8+.} Qd1+ {[%emt 0:02:02]} 44. Kc4 {[%emt 0:01:13]} Qxa4+ {[%emt 0:03:20]} 45. Kd3 {[%emt 0:00:25]} Qd1+ {[%emt 0:06:57]} 46. Kc4 {[%emt 0:00:25] Threatening mate with Rh8+.} Rdd5 {[%emt 0:02:19][%cal Od5c5] ( -> ...Rc5+!)} 47. b4 {[%emt 0:03:26] Prevents Rc5+.} (47. Qe3 Qa4+ 48. Kc3 Qb4+ 49. Kc2 Qc4+ 50. Qc3 Qxd4 51. Qxd4 Rxd4 52. Rh8+ Kg7 53. R2h7+ Kf6 54. Rf8) 47... axb4 {[%emt 0:00:38]} 48. Qe3 {[%emt 0:00:42]} Rh5 {[%emt 0:03:53]} 49. Rxh5 {[%emt 0:02:13]} Rxh5 {[%emt 0:00:11]} (49... gxh5 $2 50. Qe8+ Kh7 51. Qxf7+ Kh6 52. Qf4+ Rg5 53. Rg2 $18) 50. Rxh5 {[%emt 0:00:19]} Qc2+ {[%emt 0:00:47]} 51. Kxb4 {[%emt 0:01:18]} gxh5 {[%emt 0:00:09][%mdl 4096] Endgame KQ-KQ} 52. Qg5+ {[%emt 0:01:09]} Qg6 {[%emt 0:00:19]} 53. Qd8+ {[%emt 0:00:16]} Kh7 {[%emt 0:00:49]} (53... Kg7 $142 54. Kc4 Qf6) 54. Kc5 {[%emt 0:00:37]} Qe6 {[%emt 0:01:13][%cal Oe6d5] Threatens to win with ...Qd5+!} 55. Qg5 {[%emt 0:02:35] Against Qd5+} Qd5+ {[%emt 0:00:36]} 56. Qxd5 {[%emt 0:00:19]} cxd5 {[%emt 0:00:01] Black mates.} 57. Kxd5 {[%emt 0:00:13]} h4 {[%emt 0:00:09]} 58. Ke4 {[%emt 0:00:11]} f5+ {[%emt 0:00:11][%cal Bf7f5,Bf5f4][%mdl 32]} 59. Kf3 {[%emt 0:02:05]} Kg6 {[%emt 0:00:14]} 60. Kg2 {[%emt 0:00:49]} f4 {[%emt 0:00:08] Weighted Error Value: White=0.84/Black=0.28 (precise)} 0-1

[Event "Olomouc Chess Summer-IM 2022"]
[Site "Olomouc"]
[Date "2022.08.17"]
[Round "6.13"]
[White "Nemec, Jachym"]
[Black "Wiley, Tom E"]
[Result "1/2-1/2"]
[ECO "D35"]
[WhiteElo "2341"]
[BlackElo "2169"]
[Annotator "TA"]
[PlyCount "116"]
[EventDate "2022.08.10"]
[EventCountry "CZE"]
[SourceTitle "playchess.com"]
[Source "ChessBase"]
[SourceQuality "1"]
[TimeControl "40/5400+30:1800+30"]

{[%evp 19,116,25,25,15,12,8,31,0,0,-7,0,0,0,-13,-5,-18,60,-35,-34,-35,-22,-39,-40,-86,-72,-71,-77,-108,-107,-129,-89,-90,-86,-88,-71,-75,-40,-50,-33,-45,-8,-8,-11,-12,-12,-11,-10,-12,-14,-10,0,-31,-27,-18,-20,-14,-15,-25,-40,-40,-40,-43,-42,-58,-50,-44,-39,-26,-8,-38,-38,-37,0,0,0,0,0,0,0,0,0,0,0,0,0,0,0,0,0,0,0,0,0,0,0,0,0,0,0]} 1. c4 {[%emt 0:00:06]} e6 {[%emt 0:00:33]} 2. Nc3 {[%emt 0:00:08]} d5 {[%emt 0:00:05]} 3. d4 {[%emt 0:00:06]} Nf6 {[%emt 0:00:08]} 4. cxd5 {[%emt 0:00:05]} exd5 {[%emt 0:00:07]} 5. Bg5 {[%emt 0:00:04]} Be7 {[%emt 0:00:42]} 6. e3 {[%emt 0:00:07]} c6 {[%emt 0:00:03]} 7. Bd3 {[%emt 0:00:21]} Nbd7 {[%emt 0:00:28]} 8. Qc2 {[%emt 0:00:20]} Nh5 {[%emt 0:02:11]} 9. Bxe7 {[%emt 0:00:16]} Qxe7 {[%emt 0:00:04]} 10. O-O-O {[%emt 0:00:15]} g6 {[%emt 0:05:42]} 11. Kb1 {[%emt 0:01:02] D36: Queen's Gambit Declined: Exchange Variation: Main line (5 Bg5 c6 6 Qc2).} Nb6 {[%emt 0:00:24]} 12. h3 {[%emt 0:04:09]} Ng7 {[%emt 0:08:21]} 13. Nf3 {[%emt 0:00:08] White is slightly better.} Bf5 {[%emt 0:06:10]} 14. e4 {[%emt 0:12:31] [#]} dxe4 $146 {[%emt 0:00:39]} ({Predecessor:} 14... Bxe4 15. Bxe4 dxe4 16. Qxe4 Ne6 17. d5 cxd5 18. Nxd5 Nxd5 19. Rxd5 O-O 20. Nd4 Qb4 21. a3 {½-½ (21) Bokar,J (2569)-Jedrzejowski,M (2503) ICCF email 2014}) 15. Bxe4 {[%emt 0:01:26]} Bxe4 {[%emt 0:07:01]} 16. Nxe4 {[%emt 0:00:38]} O-O-O {[%emt 0:01:56][%cal Be8c8,Bc8b8,Bb8a8][%mdl 32]} 17. Rhe1 {[%emt 0:01:26]} Nd5 {[%emt 0:03:33]} ({Black should play} 17... Qc7 $11) 18. Ne5 {[%emt 0:06:59]} (18. Qc5 $14) 18... Qc7 $15 {[%emt 0:06:48]} 19. Qa4 {[%emt 0:08:36]} Kb8 {[%emt 0:02:43]} 20. Rd3 {[%emt 0:15:13]} f6 {[%emt 0:10:30]} 21. Nf3 {[%emt 0:05:54]} (21. Nc4 $15 {was preferrable.}) 21... Rhe8 $17 {[%emt 0:16:50]} 22. Ra3 {[%emt 0:02:03]} b6 {[%emt 0:01:08]} 23. Qd1 {[%emt 0:08:23]} Nf5 {[%emt 0:01:24]} 24. Rb3 {[%emt 0:04:10]} Ka8 {[%emt 0:00:46]} 25. g3 {[%emt 0:05:33]} Nd6 {[%emt 0:01:15]} 26. Nc3 {[%emt 0:04:44]} Rxe1 {[%emt 0:02:32]} 27. Nxe1 {[%emt 0:01:13][%cal Bf3e1,Be1c2,Bc2b4,Bb4d3,Bd3e5][%mdl 32]} Nf5 {[%emt 0:02:38]} 28. Nc2 {[%emt 0:01:15]} Qd7 {[%emt 0:03:38]} 29. Qf3 {[%emt 0:01:14]} Nde7 {[%emt 0:09:49]} 30. Ne2 {[%emt 0:01:41]} Qd5 {[%emt 0:01:09]} 31. g4 {[%emt 0:02:08]} Nd6 {[%emt 0:02:06]} 32. Nb4 {[%emt 0:03:23]} Qxf3 {[%emt 0:00:44]} 33. Rxf3 {[%emt 0:00:03]} a5 {[%emt 0:01:45]} 34. Nd3 {[%emt 0:02:54]} f5 {[%emt 0:00:41]} 35. Ne5 {[%emt 0:03:53]} Kb7 {[%emt 0:01:13]} 36. Nc3 {[%emt 0:02:00]} b5 {[%emt 0:00:47]} 37. Rd3 {[%emt 0:01:10]} Ne4 {[%emt 0:00:56]} 38. f3 {[%emt 0:01:44]} Nxc3+ {[%emt 0:00:27]} 39. bxc3 $11 {[%emt 0:00:04][%mdl 4096] Endgame KRN-KRN} Nd5 {[%emt 0:00:27]} 40. Kb2 {[%emt 0:00:48]} Nf4 {[%emt 0:01:24][%csl LRd3,LRh3]} 41. Rd2 {[%emt 0:31:57][%cal Oa2a4]} c5 {[%emt 0:04:55]} 42. h4 {[%emt 0:00:00]} cxd4 {[%emt 0:01:50]} 43. cxd4 {[%emt 0:00:00]} Rd5 {[%emt 0:02:51]} 44. gxf5 {[%emt 0:00:00]} gxf5 {[%emt 0:00:07]} 45. Kc3 {[%emt 0:00:00]} Ng6 {[%emt 0:03:00]} 46. Nxg6 {[%emt 0:00:00] The position is equal.} hxg6 {[%emt 0:00:05] KR-KR} 47. Rg2 {[%emt 0:00:00]} Rd6 {[%emt 0:00:48]} 48. d5 {[%emt 0:00:00]} Rxd5 {[%emt 0:00:05]} 49. Rxg6 {[%emt 0:00:00]} b4+ {[%emt 0:00:23]} 50. Kc2 {[%emt 0:00:00]} Re5 {[%emt 0:02:21]} 51. h5 {[%emt 0:00:00]} Re2+ {[%emt 0:00:44]} 52. Kb3 {[%emt 0:00:00]} Re3+ {[%emt 0:00:10]} 53. Ka4 {[%emt 0:00:00] Hoping for h6.} Rxf3 {[%emt 0:04:02]} 54. Kxa5 {[%emt 0:00:00] [#] aiming for h6.} Rh3 {[%emt 0:01:22]} 55. h6 {[%emt 0:00:00]} f4 {[%emt 0:01:38]} 56. Kxb4 {[%emt 0:01:24] Kc4 is the strong threat.} f3 {[%emt 0:00:45]} 57. Rf6 {[%emt 0:00:12]} f2 {[%emt 0:00:11]} 58. Rxf2 {[%emt 0:00:06] [#] Black must now prevent Rf7+.} Rxh6 {[%emt 0:00:05] Weighted Error Value: White=0.11 (very precise) /Black=0.08 (flawless)} 1/2-1/2

[Event "Olomouc Chess Summer-IM 2022"]
[Site "Olomouc"]
[Date "2022.08.17"]
[Round "6.14"]
[White "Paseka, Matyas"]
[Black "Biolek, Richard"]
[Result "1/2-1/2"]
[ECO "C93"]
[WhiteElo "2218"]
[BlackElo "2402"]
[Annotator "TA"]
[PlyCount "117"]
[EventDate "2022.08.10"]
[EventCountry "CZE"]
[SourceTitle "playchess.com"]
[Source "ChessBase"]
[SourceQuality "1"]
[TimeControl "40/5400+30:1800+30"]

{[%evp 27,117,27,71,65,63,63,71,68,96,79,74,91,77,81,95,0,9,-40,-11,-10,-16,-18,6,6,0,-13,-10,-31,-31,-56,-25,-41,-11,-8,-13,-23,-16,-21,0,0,77,78,83,89,80,77,93,93,93,93,108,60,60,60,60,60,60,52,53,52,52,52,52,52,60,60,60,60,60,60,60,60,60,60,60,60,67,52,67,10,25,8,8,8,8,8,8,8,8,8,8,8]} 1. e4 {[%emt 0:00:03]} e5 {[%emt 0:00:14]} 2. Nf3 {[%emt 0:00:10]} Nc6 {[%emt 0:00:06]} 3. Bb5 {[%emt 0:00:08][%cal Bf1b5,Bb5a4,Ba4b3][%mdl 32]} a6 {[%emt 0:00:05]} 4. Ba4 {[%emt 0:00:06]} Nf6 {[%emt 0:00:08]} 5. O-O {[%emt 0:00:09]} Be7 {[%emt 0:00:06]} 6. Re1 {[%emt 0:00:08]} b5 {[%emt 0:00:09]} 7. Bb3 {[%emt 0:00:07]} d6 {[%emt 0:00:08]} 8. c3 {[%emt 0:00:14]} O-O {[%emt 0:00:06]} 9. h3 {[%emt 0:00:08]} h6 {[%emt 0:00:11]} 10. d4 {[%emt 0:00:40]} Re8 {[%emt 0:00:38]} 11. Nbd2 {[%emt 0:02:15][%cal Bb1d2,Bd2f1,Bf1g3][%mdl 32]} Bf8 {[%emt 0:01:55]} 12. Bc2 {[%emt 0:00:46]} g6 {[%emt 0:02:50]} 13. Nf1 {[%emt 0:03:47]} Bg7 {[%emt 0:00:36]} 14. Ng3 {[%emt 0:00:53]} Bd7 {[%emt 0:10:56]} 15. Be3 {[%emt 0:10:38] C93: Closed Ruy Lopez: Smyslov Variation.} Qe7 {[%emt 0:06:46]} 16. Qd2 {[%emt 0:01:30]} Kh7 {[%emt 0:01:33] [#]} 17. Nh2 $146 {[%emt 0:07:14] White is better.} ({Predecessor:} 17. Rad1 Rad8 18. Qc1 Qf8 19. b3 d5 20. dxe5 Nxe4 21. Bxe4 dxe4 22. Nxe4 Nxe5 23. Nxe5 Bxe5 24. Bf4 Qg7 25. Bxe5 Qxe5 26. Nd6 cxd6 27. Rxe5 dxe5 28. Qd2 a5 29. Qd6 {1-0 (29) Martinez Duany,L (2485)-Gonzalez Vidal,Y (2507) Santiago de Cuba 2009}) 17... d5 {[%emt 0:15:15]} 18. exd5 {[%emt 0:18:31]} Nxd5 {[%emt 0:01:01] [#]} 19. dxe5 $1 {[%emt 0:00:13]} Nxe3 {[%emt 0:00:23]} 20. Rxe3 {[%emt 0:00:26]} Bxe5 {[%emt 0:05:02]} 21. Rae1 {[%emt 0:00:40]} (21. Nf3 $16 Rad8 22. Qe2 (22. Nxe5 Nxe5 23. Qe2 f6 $16)) 21... Rad8 $1 $11 {[%emt 0:13:26]} 22. f4 {[%emt 0:09:45]} (22. Nf3 $11 Be6 23. Qe2 Bxg3 24. fxg3) 22... Qd6 {[%emt 0:06:12]} 23. Qxd6 {[%emt 0:16:59]} (23. Rd3 {with more complications.} Bxf4 24. Rxd6 Bxd2 25. Bxg6+ Kg7 26. Rxe8 cxd6 27. Rxd8 Nxd8 28. Bf5) 23... Bxd6 {[%emt 0:00:04]} 24. Rxe8 {[%emt 0:01:29]} Rxe8 {[%emt 0:00:45]} 25. Rxe8 {[%emt 0:01:01]} Bxe8 {[%emt 0:00:13]} 26. Ne4 {[%emt 0:00:56] And now Nf6+ would win.} Be7 {[%emt 0:05:09] Against Nf6+} 27. Nf3 {[%emt 0:09:20][%cal Of4f5]} f5 {[%emt 0:02:07]} 28. Nf2 {[%emt 0:00:21]} Kg7 {[%emt 0:03:14]} (28... Bd6 $5 {[%cal Rd6f4]} 29. Nd3 Kg7 $15) 29. Nd3 {[%emt 0:00:28]} Kf6 {[%emt 0:02:23]} 30. Kf2 {[%emt 0:01:12]} Bd6 {[%emt 0:01:49]} 31. g3 {[%emt 0:00:53]} g5 {[%emt 0:04:15]} 32. h4 {[%emt 0:00:47][%cal Rh4g5]} gxh4 {[%emt 0:01:13]} 33. Nxh4 {[%emt 0:00:11]} Bf7 {[%emt 0:00:22] [#]} (33... Ne7 $11 {keeps the balance.}) 34. Nxf5 $1 $16 {[%emt 0:01:30]} Kxf5 {[%emt 0:06:58]} 35. Ne5+ {[%emt 0:00:07]} Kf6 {[%emt 0:00:01]} 36. Nxc6 {[%emt 0:00:07][%mdl 4096] Endgame KBB-KBN} Bc5+ {[%emt 0:00:47]} 37. Kf3 {[%emt 0:01:36]} Bd5+ {[%emt 0:05:22]} 38. Be4 {[%emt 0:00:05]} Bxa2 {[%emt 0:00:07]} 39. Nb8 {[%emt 0:00:10]} (39. Nb4 $16 Bb3 40. Nxa6) 39... Bd6 $14 {[%emt 0:01:45]} 40. Nxa6 {[%emt 0:00:12]} c5 $1 {[%emt 0:01:45]} 41. b4 {[%emt 0:30:16]} cxb4 {[%emt 0:30:15]} 42. Nxb4 {[%emt 0:00:07]} Bc4 {[%emt 0:01:49]} 43. Nc2 {[%emt 0:05:15]} Bc5 {[%emt 0:00:00]} 44. g4 {[%emt 0:00:00]} Be6 {[%emt 0:00:00]} 45. Bd3 {[%emt 0:00:00]} Bd7 {[%emt 0:00:00]} 46. Nb4 {[%emt 0:00:00]} Bd6 {[%emt 0:00:00]} 47. Be2 {[%emt 0:00:00]} Kf7 {[%emt 0:00:00]} 48. Ke4 {[%emt 0:00:00]} Bf8 {[%emt 0:00:00]} 49. Bf3 {[%emt 0:00:00]} Ke6 {[%emt 0:00:00]} 50. Kd3 {[%emt 0:00:00]} Kd6 {[%emt 0:00:00]} 51. Nc2 {[%emt 0:00:00]} Kc5 {[%emt 0:00:00]} 52. Nd4 {[%emt 0:00:00]} Bg7 {[%emt 0:00:00]} 53. f5 {[%emt 0:00:00] White is more active.} ({White should play} 53. Nb3+ $14 Kd6 54. Bd1) 53... Bf6 {[%emt 0:00:00]} 54. Be2 {[%emt 0:05:21]} Kd5 {[%emt 0:00:00] The position is equal.} 55. Nf3 {[%emt 0:02:39]} h5 {[%emt 0:00:16]} 56. gxh5 {[%emt 0:01:20]} Bxf5+ {[%emt 0:00:10]} 57. Kd2 {[%emt 0:00:20]} Bg4 {[%emt 0:00:47]} 58. Nd4 {[%emt 0:02:36]} Bxh5 {[%emt 0:01:51]} 59. Bxh5 {[%emt 0:00:30] Weighted Error Value: White=0.11 (very precise) /Black=0.09 (flawless)} 1/2-1/2

[Event "Olomouc Chess Summer-IM 2022"]
[Site "Olomouc"]
[Date "2022.08.17"]
[Round "6.15"]
[White "Saypuri Srithan"]
[Black "Mannion, Stephen R"]
[Result "1/2-1/2"]
[ECO "C96"]
[WhiteElo "1923"]
[BlackElo "2232"]
[Annotator "NA RC"]
[PlyCount "34"]
[EventDate "2022.08.10"]
[EventCountry "CZE"]
[SourceTitle "playchess.com"]
[Source "ChessBase"]
[SourceQuality "1"]
[TimeControl "40/5400+30:1800+30"]

1. e4 {[%emt 0:02:45]} e5 {[%emt 0:00:09]} 2. Nf3 {[%emt 0:00:15]} Nc6 {[%emt 0:00:06]} 3. Bb5 {[%emt 0:00:09]} a6 {[%emt 0:00:06]} 4. Ba4 {[%emt 0:00:04]} Nf6 {[%emt 0:00:08]} 5. O-O {[%emt 0:00:05]} Be7 {[%emt 0:00:07]} 6. Re1 {[%emt 0:00:08]} b5 {[%emt 0:00:09]} 7. Bb3 {[%emt 0:00:06]} d6 {[%emt 0:00:08]} 8. c3 {[%emt 0:00:04]} O-O {[%emt 0:00:14]} 9. h3 {[%emt 0:00:07]} Na5 {[%emt 0:00:14]} 10. Bc2 {[%emt 0:00:56]} c5 {[%emt 0:00:07]} 11. d3 {[%emt 0:14:43]} Re8 {[%emt 0:01:39]} 12. Nbd2 {[%emt 0:05:58]} Bf8 {[%emt 0:00:10]} 13. Nf1 {[%emt 0:06:09]} h6 {[%emt 0:00:10]} 14. Ne3 {[%emt 0:01:33]} g6 {[%emt 0:12:55]} 15. Bd2 {[%emt 0:02:56]} Nc6 {[%emt 0:05:36]} 16. Bb3 {[%emt 0:02:48]} Be6 {[%emt 0:08:31]} 17. a4 {[%emt 0:13:57]} Bxb3 {[%emt 0:17:06]} 1/2-1/2

[Event "Olomouc Chess Summer-IM 2022"]
[Site "Olomouc"]
[Date "2022.08.18"]
[Round "7.7"]
[White "Gimenez Menchon, Cesar"]
[Black "Kukelko, Alexey"]
[Result "0-1"]
[ECO "B22"]
[WhiteElo "2207"]
[BlackElo "2260"]
[Annotator "TA"]
[PlyCount "102"]
[EventDate "2022.08.10"]
[EventCountry "CZE"]
[SourceTitle "playchess.com"]
[Source "ChessBase"]
[SourceQuality "1"]
[TimeControl "40/5400+30:1800+30"]

{[%evp 13,102,28,29,32,29,25,25,22,62,10,18,8,17,25,12,10,7,0,15,0,0,0,0,0,0,0,4,0,0,-9,0,-29,-29,-33,0,0,3,0,48,-5,4,0,16,0,0,0,0,-11,0,0,0,0,60,0,51,-67,-67,-370,-360,-337,-187,-309,-303,-451,-443,-445,-432,-509,-519,-546,-540,-569,-464,-644,-634,-775,-762,-735,-620,-737,-737,-947,-927,-5551,-5404,-2789,-2604,-29982,-29981,-29988,-5114]} 1. e4 {[%emt 0:00:16]} c5 {[%emt 0:04:25]} 2. c3 {[%emt 0:00:09]} d5 {[%emt 0:00:08]} 3. exd5 {[%emt 0:00:07]} Qxd5 {[%emt 0:00:05]} 4. d4 {[%emt 0:00:05]} Nf6 {[%emt 0:00:02]} 5. Nf3 {[%emt 0:00:08]} e6 {[%emt 0:00:09]} 6. Na3 {[%emt 0:00:07]} a6 {[%emt 0:00:29]} 7. Nc4 {[%emt 0:06:34]} Nbd7 {[%emt 0:01:39]} 8. a4 {[%emt 0:00:39] B22: Sicilian: 2 c3.} b6 {[%emt 0:04:46]} 9. Be3 {[%emt 0:02:03] [#]} cxd4 $146 {[%emt 0:03:13]} ({Predecessor:} 9... Bb7 10. dxc5 Qxd1+ 11. Rxd1 Bxf3 12. gxf3 Bxc5 13. Rg1 Bxe3 14. fxe3 g6 15. Rg2 Ke7 {1-0 (52) Feoktistov,A (2421)-Gritsak,O (2548) Voronezh 2006}) 10. Bxd4 {[%emt 0:14:28] White has an edge.} Qc6 {[%emt 0:01:42]} 11. Be2 {[%emt 0:07:09]} ({White should try} 11. Nfe5 $1 $14 Nxe5 12. Nxe5) 11... Bb7 $11 {[%emt 0:00:10]} 12. O-O {[%emt 0:04:20]} Rd8 {[%emt 0:03:41]} 13. Qb3 {[%emt 0:05:10]} Bc5 $1 {[%emt 0:00:27]} 14. Bxc5 {[%emt 0:02:41]} Qxc5 {[%emt 0:00:37]} 15. Qa3 {[%emt 0:05:48]} Qxa3 {[%emt 0:04:18]} 16. Rxa3 {[%emt 0:00:18]} Ke7 {[%emt 0:00:56] Against Nd6} 17. Rd1 {[%emt 0:08:38]} Nd5 {[%emt 0:09:08]} 18. Nd4 {[%emt 0:00:46]} Rc8 {[%emt 0:01:58]} 19. Bf1 {[%emt 0:10:59]} h5 {[%emt 0:03:39]} 20. Re1 {[%emt 0:02:08]} g6 {[%emt 0:00:38] Inhibits Nf5+.} 21. h3 {[%emt 0:01:12]} h4 {[%emt 0:00:59]} 22. Ne3 {[%emt 0:05:51]} Rh5 {[%emt 0:08:22]} 23. Rb3 {[%emt 0:01:13]} Kd8 {[%emt 0:05:13]} 24. Nc4 {[%emt 0:02:38] And now Nd6 would win.} Nc5 {[%emt 0:18:19]} 25. Ra3 {[%emt 0:00:05] [#] Strongly threatening b4.} Kc7 {[%emt 0:02:06]} (25... Ke7 $11) 26. Re5 {[%emt 0:01:46]} (26. Ne5 $14) 26... Rhh8 {[%emt 0:00:56]} 27. Re1 {[%emt 0:07:04]} Nf4 {[%emt 0:01:30]} 28. Re3 {[%emt 0:03:49]} f6 {[%emt 0:05:38]} 29. b4 {[%emt 0:02:30]} Ne4 {[%emt 0:00:14]} 30. f3 {[%emt 0:01:33]} Ng5 {[%emt 0:00:33]} 31. a5 {[%emt 0:01:05]} b5 {[%emt 0:00:26]} 32. Nb6 {[%emt 0:00:05]} Rcd8 {[%emt 0:00:16]} (32... e5 $1 $11) 33. Ra1 {[%emt 0:02:46]} (33. Ne2 $1 $14 Nxe2+ 34. Bxe2) 33... Rd6 {[%emt 0:03:19]} ({Better is} 33... e5 $11 34. Nb3 Rh7) 34. Bxb5 {[%emt 0:02:26]} e5 $15 {[%emt 0:05:04]} ({Don't play} 34... Rxd4 35. cxd4 axb5 36. Rc3+ Kb8 37. Nd7+ Ka7 38. Rc5 $11) 35. Bxa6 $2 {[%emt 0:00:28][%mdl 8192] Now White is beyond hope.} Bxa6 $19 {[%emt 0:00:07] The board is on fire.} 36. Nb3 {[%emt 0:00:25]} Nd3 {[%emt 0:03:26]} (36... Rhd8 $142 37. c4 Bb7) 37. Rd1 {[%emt 0:00:49] [#]} (37. Nc1 {was worth a try.}) 37... Rhd8 $1 {[%emt 0:00:11]} 38. Rd2 {[%emt 0:00:18]} (38. b5 $142 Bxb5 39. c4) 38... Ne6 {[%emt 0:00:30]} 39. Kh2 {[%emt 0:00:27]} g5 {[%emt 0:02:20]} 40. Kg1 {[%emt 0:00:40]} Nef4 {[%emt 0:02:46]} 41. Kh2 {[%emt 0:05:46]} Rc6 {[%emt 0:03:57][%cal Bd6c6,Bc6c3,Bc3b3,Bb3b2][%mdl 32]} 42. Na4 {[%emt 0:03:29]} Ne6 {[%emt 0:00:08]} 43. Nb2 {[%emt 0:02:27][%cal Rb2d3]} Rxc3 {[%emt 0:00:35]} 44. Na1 {[%emt 0:06:22]} Nef4 {[%emt 0:02:18]} 45. Nc2 {[%emt 0:00:57]} Rb3 {[%emt 0:03:11]} 46. Na4 {[%emt 0:03:27]} Bb5 {[%emt 0:02:11]} 47. Nb6 {[%emt 0:02:38]} Rb2 {[%emt 0:01:17] aiming for ...Rd6.} 48. g3 {[%emt 0:02:05]} hxg3+ {[%emt 0:00:46]} 49. Kxg3 {[%emt 0:00:06]} f5 {[%emt 0:01:04] ...Rh8 is the strong threat.} 50. h4 {[%emt 0:01:30]} Rh8 {[%emt 0:00:23]} 51. h5 {[%emt 0:05:07]} Rxh5 {[%emt 0:01:07] Weighted Error Value: White=0.81/Black=0.14 (very precise)} (51... Nxh5+ $142 52. Kh2 Nhf4+ 53. Kg1 Rb1+ 54. Ne1 Nxe1 55. Rxe1 Rxe1+ 56. Kf2 Rf1+ 57. Ke3 Rh3 58. Rf2 Rd1 59. Rc2+ Kb7 60. Nc4 Bxc4 61. a6+ Kxa6 62. Rxc4 Rd3+ 63. Kf2 Rh2+ 64. Kg1 Rg2+ 65. Kh1 Rd1#) 0-1